[Event "Titled Tuesday Blitz May 03 Early 2022"]
[White "Wagner, Dinara"]
[Black "Borgaonkar Akshay"]
[WhiteFideId "24157570"]
[BlackFideId "25639110"]
[WhiteElo "2216"]
[BlackElo "1624"]
[Result "1/2-1/2"]
[Round "02"]
[TimeControl "180+1"]
[Date "2022.05.03"]
[WhiteClock "0:00:04"]
[BlackClock "0:00:05"]

1. d4 {[%clk 0:02:59]}  Nf6 {[%clk 0:02:58]} 2. Nf3 {[%clk 0:03:00]}  g6 {[%clk 0:02:57]} 3. c4 {[%clk 0:03:00]}  Bg7 {[%clk 0:02:57]} 4. g3 {[%clk 0:03:01]}  O-O {[%clk 0:02:57]} 5. Bg2 {[%clk 0:03:01]}  c5 {[%clk 0:02:55]} 6. d5 {[%clk 0:03:00]}  b5 {[%clk 0:02:54]} 7. cxb5 {[%clk 0:02:59]}  d6 {[%clk 0:02:54]} 8. Nc3 {[%clk 0:02:58]}  a6 {[%clk 0:02:54]} 9. bxa6 {[%clk 0:02:58]}  Nbd7 {[%clk 0:02:51]} 10. O-O {[%clk 0:02:58]}  Qa5 {[%clk 0:02:52]} 11. Qc2 {[%clk 0:02:47]}  Bxa6 {[%clk 0:02:50]} 12. Rd1 {[%clk 0:02:47]}  Nb6 {[%clk 0:02:48]} 13. Rb1 {[%clk 0:02:40]}  Rfb8 {[%clk 0:02:43]} 14. b3 {[%clk 0:02:39]}  Ne8 {[%clk 0:02:33]} 15. Bd2 {[%clk 0:02:34]}  Bb7 {[%clk 0:02:22]} 16. a4 {[%clk 0:02:32]}  Qa6 {[%clk 0:02:19]} 17. e4 {[%clk 0:02:25]}  c4 {[%clk 0:02:17]} 18. Bf1 {[%clk 0:02:23]}  cxb3 {[%clk 0:02:10]} 19. Qxb3 {[%clk 0:02:22]}  Qa5 {[%clk 0:02:03]} 20. Qxb6 {[%clk 0:01:34]}  Bxc3 {[%clk 0:02:02]} 21. Qxa5 {[%clk 0:01:35]}  Bxa5 {[%clk 0:02:02]} 22. Bxa5 {[%clk 0:01:35]}  Rxa5 {[%clk 0:02:02]} 23. Rb4 {[%clk 0:01:36]}  Nf6 {[%clk 0:01:07]} 24. Rdb1 {[%clk 0:01:33]}  Rba8 {[%clk 0:01:07]} 25. Rxb7 {[%clk 0:01:32]}  Rxa4 {[%clk 0:01:07]} 26. Rxe7 {[%clk 0:01:32]}  Rxe4 {[%clk 0:01:08]} 27. Rxe4 {[%clk 0:01:10]}  Nxe4 {[%clk 0:01:09]} 28. Re1 {[%clk 0:01:07]}  Nc3 {[%clk 0:01:07]} 29. h4 {[%clk 0:00:59]}  Nxd5 {[%clk 0:01:06]} 30. Rd1 {[%clk 0:00:59]}  Ra5 {[%clk 0:01:06]} 31. Bc4 {[%clk 0:00:57]}  Nb6 {[%clk 0:01:06]} 32. Bb3 {[%clk 0:00:56]}  d5 {[%clk 0:01:06]} 33. Nd4 {[%clk 0:00:51]}  h5 {[%clk 0:01:03]} 34. Rb1 {[%clk 0:00:49]}  Kg7 {[%clk 0:01:02]} 35. Kg2 {[%clk 0:00:46]}  Rc5 {[%clk 0:00:59]} 36. Bd1 {[%clk 0:00:45]}  Nc4 {[%clk 0:00:57]} 37. Rb7 {[%clk 0:00:45]}  Kf6 {[%clk 0:00:56]} 38. Bf3 {[%clk 0:00:42]}  Ne5 {[%clk 0:00:51]} 39. Ne2 {[%clk 0:00:34]}  Rc2 {[%clk 0:00:41]} 40. Nf4 {[%clk 0:00:32]}  d4 {[%clk 0:00:40]} 41. Rb6+ {[%clk 0:00:25]}  Kg7 {[%clk 0:00:39]} 42. Rd6 {[%clk 0:00:25]}  Rd2 {[%clk 0:00:35]} 43. Ne2 {[%clk 0:00:13]}  d3 {[%clk 0:00:28]} 44. Nf4 {[%clk 0:00:13]}  Kf8 {[%clk 0:00:26]} 45. Rd4 {[%clk 0:00:12]}  Ke7 {[%clk 0:00:23]} 46. Rd5 {[%clk 0:00:13]}  f6 {[%clk 0:00:22]} 47. Kg1 {[%clk 0:00:08]}  Kf7 {[%clk 0:00:19]} 48. Bg2 {[%clk 0:00:08]}  Ng4 {[%clk 0:00:19]} 49. Rxd3 {[%clk 0:00:07]}  Rxf2 {[%clk 0:00:19]} 50. Rd7+ {[%clk 0:00:06]}  Ke8 {[%clk 0:00:19]} 51. Ra7 {[%clk 0:00:05]}  Rb2 {[%clk 0:00:14]} 52. Bc6+ {[%clk 0:00:05]}  Kd8 {[%clk 0:00:13]} 53. Ne6+ {[%clk 0:00:05]}  Kc8 {[%clk 0:00:12]} 54. Ra8+ {[%clk 0:00:05]}  Rb8 {[%clk 0:00:12]} 55. Bd7+ {[%clk 0:00:04]}  Kb7 {[%clk 0:00:12]} 56. Rxb8+ {[%clk 0:00:05]}  Kxb8 {[%clk 0:00:12]} 57. Nf8 {[%clk 0:00:06]}  Ne5 {[%clk 0:00:11]} 58. Be6 {[%clk 0:00:05]}  Kc7 {[%clk 0:00:10]} 59. Bb3 {[%clk 0:00:04]}  Kd6 {[%clk 0:00:10]} 60. Ne6 {[%clk 0:00:04]}  Ke7 {[%clk 0:00:08]} 61. Nf4 {[%clk 0:00:04]}  f5 {[%clk 0:00:07]} 62. Kf2 {[%clk 0:00:04]}  Kf6 {[%clk 0:00:08]} 63. Ke3 {[%clk 0:00:04]}  Ng4+ {[%clk 0:00:08]} 64. Kf3 {[%clk 0:00:04]}  Ne5+ {[%clk 0:00:08]} 65. Kf2 {[%clk 0:00:05]}  Ng4+ {[%clk 0:00:09]} 66. Ke2 {[%clk 0:00:06]}  Ne5 {[%clk 0:00:09]} 67. Nd5+ {[%clk 0:00:06]}  Ke6 {[%clk 0:00:10]} 68. Ke3 {[%clk 0:00:06]}  Ng4+ {[%clk 0:00:09]} 69. Kf4 {[%clk 0:00:07]}  Kf7 {[%clk 0:00:09]} 70. Kg5 {[%clk 0:00:07]}  Kg7 {[%clk 0:00:09]} 71. Nf4 {[%clk 0:00:07]}  Nf2 {[%clk 0:00:07]} 72. Ne6+ {[%clk 0:00:07]}  Kh7 {[%clk 0:00:06]} 73. Nf8+ {[%clk 0:00:06]}  Kg7 {[%clk 0:00:06]} 74. Ne6+ {[%clk 0:00:06]}  Kh7 {[%clk 0:00:06]} 75. Nd4 {[%clk 0:00:07]}  Ne4+ {[%clk 0:00:07]} 76. Kf4 {[%clk 0:00:07]}  Kg7 {[%clk 0:00:06]} 77. Ne6+ {[%clk 0:00:08]}  Kf6 {[%clk 0:00:06]} 78. Ng5 {[%clk 0:00:08]}  Nf2 {[%clk 0:00:04]} 79. Nf3 {[%clk 0:00:08]}  Nd3+ {[%clk 0:00:04]} 80. Ke3 {[%clk 0:00:08]}  Nc5 {[%clk 0:00:04]} 81. Ba2 {[%clk 0:00:08]}  Ne4 {[%clk 0:00:05]} 82. Nd4 {[%clk 0:00:08]}  Nxg3 {[%clk 0:00:04]} 83. Kf4 {[%clk 0:00:09]}  Ne4 {[%clk 0:00:04]} 84. Nf3 {[%clk 0:00:07]}  Nc5 {[%clk 0:00:04]} 85. Bc4 {[%clk 0:00:07]}  Ne4 {[%clk 0:00:03]} 86. Nd4 {[%clk 0:00:07]}  Nc5 {[%clk 0:00:04]} 87. Nb5 {[%clk 0:00:06]}  Ne4 {[%clk 0:00:04]} 88. Nc7 {[%clk 0:00:07]}  Nc5 {[%clk 0:00:05]} 89. Nd5+ {[%clk 0:00:07]}  Kg7 {[%clk 0:00:05]} 90. Ba2 {[%clk 0:00:03]}  Nd3+ {[%clk 0:00:05]} 91. Kg5 {[%clk 0:00:03]}  Nc5 {[%clk 0:00:06]} 92. Kf4 {[%clk 0:00:02]}  Nd3+ {[%clk 0:00:06]} 93. Kg3 {[%clk 0:00:03]}  Nc5 {[%clk 0:00:06]} 94. Nf4 {[%clk 0:00:03]}  Ne4+ {[%clk 0:00:06]} 95. Kf3 {[%clk 0:00:04]}  Nc5 {[%clk 0:00:06]} 96. Bd5 {[%clk 0:00:04]}  Kf6 {[%clk 0:00:06]} 97. Bc6 {[%clk 0:00:04]}  Nb3 {[%clk 0:00:05]} 98. Be8 {[%clk 0:00:04]}  Nd4+ {[%clk 0:00:05]} 99. Ke3 {[%clk 0:00:04]}  Nc2+ {[%clk 0:00:05]} 100. Kd2 {[%clk 0:00:04]}  Nd4 {[%clk 0:00:05]} 101. Bxg6 {[%clk 0:00:04]}  Nf3+ {[%clk 0:00:05]} 102. Ke3 {[%clk 0:00:04]}  Nxh4 {[%clk 0:00:06]} 103. Bxh5 {[%clk 0:00:04]}  Kg5 {[%clk 0:00:06]} 104. Bd1 {[%clk 0:00:04]}  Ng6 {[%clk 0:00:06]} 105. Ne6+ {[%clk 0:00:04]}  Kf6 {[%clk 0:00:06]} 106. Nd4 {[%clk 0:00:04]}  Ke5 {[%clk 0:00:05]} 107. Nf3+ {[%clk 0:00:04]}  Kf6 {[%clk 0:00:06]} 108. Bc2 {[%clk 0:00:04]}  Ne5 {[%clk 0:00:07]} 109. Nd4 {[%clk 0:00:04]}  Ng4+ {[%clk 0:00:07]} 110. Kf4 {[%clk 0:00:04]}  Nh6 {[%clk 0:00:06]} 111. Nc6 {[%clk 0:00:03]}  Nf7 {[%clk 0:00:05]} 112. Nd4 {[%clk 0:00:03]}  Nd6 {[%clk 0:00:06]} 113. Bd3 {[%clk 0:00:04]}  Nf7 {[%clk 0:00:03]} 114. Nxf5 {[%clk 0:00:04]}  Ne5 {[%clk 0:00:03]} 115. Bb1 {[%clk 0:00:04]}  Ng6+ {[%clk 0:00:04]} 116. Ke4 {[%clk 0:00:04]}  Ne5 {[%clk 0:00:05]} 117. Nd4 {[%clk 0:00:04]}  Nf7 {[%clk 0:00:06]} 118. Nc6 {[%clk 0:00:04]}  Nd6+ {[%clk 0:00:06]} 119. Kd5 {[%clk 0:00:04]}  Nf7 {[%clk 0:00:07]} 120. Be4 {[%clk 0:00:03]}  Ng5 {[%clk 0:00:08]} 121. Bd3 {[%clk 0:00:04]}  Nf7 {[%clk 0:00:08]} 122. Nb8 {[%clk 0:00:04]}  Ng5 {[%clk 0:00:08]} 123. Nd7+ {[%clk 0:00:04]}  Ke7 {[%clk 0:00:08]} 124. Kc6 {[%clk 0:00:05]}  Nf7 {[%clk 0:00:09]} 125. Bc4 {[%clk 0:00:04]}  Nd8+ {[%clk 0:00:08]} 126. Kc7 {[%clk 0:00:04]}  Ne6+ {[%clk 0:00:09]} 127. Kc8 {[%clk 0:00:04]}  Nd4 {[%clk 0:00:06]} 128. Nb6 {[%clk 0:00:04]}  Ne6 {[%clk 0:00:05]} 129. Nd5+ {[%clk 0:00:05]}  Kd6 {[%clk 0:00:06]} 130. Ne3 {[%clk 0:00:05]}  Nd4 {[%clk 0:00:04]} 131. Kb7 {[%clk 0:00:05]}  Kc5 {[%clk 0:00:05]} 132. Bg8 {[%clk 0:00:04]}  Nf3 {[%clk 0:00:03]} 133. Kc7 {[%clk 0:00:04]}  Kd4 {[%clk 0:00:04]} 134. Nf5+ {[%clk 0:00:04]}  Ke4 {[%clk 0:00:05]} 135. Nd6+ {[%clk 0:00:05]}  Ke5 {[%clk 0:00:04]} 136. Kc6 {[%clk 0:00:05]}  Nd4+ {[%clk 0:00:04]} 137. Kc5 {[%clk 0:00:05]}  Ne6+ {[%clk 0:00:04]} 138. Kc6 {[%clk 0:00:05]}  Nd4+ {[%clk 0:00:04]} 139. Kd7 {[%clk 0:00:05]}  Nf5 {[%clk 0:00:05]} 140. Nc4+ {[%clk 0:00:05]}  Kf6 {[%clk 0:00:05]} 141. Nd2 {[%clk 0:00:04]}  Nh6 {[%clk 0:00:03]} 142. Bb3 {[%clk 0:00:04]}  Nf5 {[%clk 0:00:04]} 143. Kc6 {[%clk 0:00:04]}  Ke5 {[%clk 0:00:05]} 144. Kc5 {[%clk 0:00:04]}  Nd6 {[%clk 0:00:03]} 145. Nf3+ {[%clk 0:00:04]}  Kf4 {[%clk 0:00:04]} 146. Nd4 {[%clk 0:00:04]}  Ne4+ {[%clk 0:00:04]} 147. Kd5 {[%clk 0:00:04]}  Nc3+ {[%clk 0:00:04]} 148. Kc4 {[%clk 0:00:05]}  Ne4 {[%clk 0:00:04]} 149. Ne6+ {[%clk 0:00:05]}  Ke5 {[%clk 0:00:04]} 150. Nd8 {[%clk 0:00:04]}  Nd2+ {[%clk 0:00:05]} 151. Kc3 {[%clk 0:00:04]}  Nxb3 {[%clk 0:00:05]} 1/2-1/2


[Site "https://www.chess.com"]

[Event "Titled Tuesday Blitz May 03 Early 2022"]
[White "Estrada Nieto, Julian"]
[Black "Demchenko, Anton"]
[WhiteFideId "5101018"]
[BlackFideId "4160258"]
[WhiteElo "2252"]
[BlackElo "2539"]
[Result "0-1"]
[Round "02"]
[TimeControl "180+1"]
[Date "2022.05.03"]
[WhiteClock "0:00:05"]
[BlackClock "0:00:15"]

1. e4 {[%clk 0:03:00]}  e5 {[%clk 0:02:58]} 2. Nf3 {[%clk 0:03:00]}  Nc6 {[%clk 0:02:55]} 3. Bb5 {[%clk 0:03:00]}  a6 {[%clk 0:02:54]} 4. Ba4 {[%clk 0:03:00]}  Nge7 {[%clk 0:02:54]} 5. Nc3 {[%clk 0:02:59]}  d6 {[%clk 0:02:54]} 6. Bb3 {[%clk 0:02:46]}  Na5 {[%clk 0:02:42]} 7. d4 {[%clk 0:02:39]}  Nxb3 {[%clk 0:02:42]} 8. axb3 {[%clk 0:02:39]}  f6 {[%clk 0:02:41]} 9. Be3 {[%clk 0:02:32]}  Be6 {[%clk 0:02:38]} 10. Qe2 {[%clk 0:02:30]}  Ng6 {[%clk 0:02:31]} 11. O-O-O {[%clk 0:02:25]}  Be7 {[%clk 0:02:25]} 12. h4 {[%clk 0:02:24]}  h5 {[%clk 0:02:24]} 13. dxe5 {[%clk 0:02:21]}  fxe5 {[%clk 0:02:12]} 14. Ng5 {[%clk 0:02:16]}  Bxg5 {[%clk 0:02:12]} 15. Bxg5 {[%clk 0:02:15]}  Qd7 {[%clk 0:02:12]} 16. g3 {[%clk 0:02:01]}  Qf7 {[%clk 0:02:11]} 17. Rdf1 {[%clk 0:01:55]}  Kd7 {[%clk 0:02:02]} 18. f4 {[%clk 0:01:55]}  exf4 {[%clk 0:02:03]} 19. gxf4 {[%clk 0:01:54]}  Bg4 {[%clk 0:02:04]} 20. Qd3 {[%clk 0:01:45]}  Rae8 {[%clk 0:01:57]} 21. Nd5 {[%clk 0:01:36]}  Kc8 {[%clk 0:01:46]} 22. Qd4 {[%clk 0:01:17]}  Kb8 {[%clk 0:01:42]} 23. f5 {[%clk 0:01:17]}  Ne5 {[%clk 0:01:42]} 24. Be3 {[%clk 0:01:16]}  Nc6 {[%clk 0:01:42]} 25. Qd3 {[%clk 0:01:10]}  Ne7 {[%clk 0:01:18]} 26. Nf4 {[%clk 0:01:06]}  Nc8 {[%clk 0:01:09]} 27. Ng6 {[%clk 0:00:55]}  Rhg8 {[%clk 0:01:07]} 28. Bd4 {[%clk 0:00:55]}  Qd7 {[%clk 0:01:03]} 29. Rhg1 {[%clk 0:00:44]}  Qc6 {[%clk 0:00:51]} 30. e5 {[%clk 0:00:39]}  dxe5 {[%clk 0:00:40]} 31. Nxe5 {[%clk 0:00:39]}  Qh6+ {[%clk 0:00:40]} 32. Kb1 {[%clk 0:00:36]}  Nd6 {[%clk 0:00:24]} 33. Nxg4 {[%clk 0:00:26]}  hxg4 {[%clk 0:00:24]} 34. Rxg4 {[%clk 0:00:26]}  Qh5 {[%clk 0:00:19]} 35. Rxg7 {[%clk 0:00:16]}  Rgf8 {[%clk 0:00:20]} 36. f6 {[%clk 0:00:15]}  Qxh4 {[%clk 0:00:20]} 37. Qc3 {[%clk 0:00:12]}  Nb5 {[%clk 0:00:18]} 38. Qc5 {[%clk 0:00:07]}  Qxd4 {[%clk 0:00:19]} 39. Rxc7 {[%clk 0:00:05]}  Qxc5 {[%clk 0:00:14]} 40. Rxc5 {[%clk 0:00:04]}  Rf7 {[%clk 0:00:15]} 41. Rcf5 {[%clk 0:00:05]}  Ref8 {[%clk 0:00:14]} 42. c4 {[%clk 0:00:05]}  Nd6 {[%clk 0:00:15]} 43. R5f4 {[%clk 0:00:05]}  Ne8 {[%clk 0:00:15]} 0-1


[Site "https://www.chess.com"]

[Event "Titled Tuesday Blitz May 03 Early 2022"]
[White "Ezat, Mohamed"]
[Black "Moiseenko, Alexander"]
[WhiteFideId "10600906"]
[BlackFideId "14102560"]
[WhiteElo "2386"]
[BlackElo "2577"]
[Result "0-1"]
[Round "02"]
[TimeControl "180+1"]
[Date "2022.05.03"]
[WhiteClock "0:00:01"]
[BlackClock "0:00:12"]

1. d4 {[%clk 0:03:00]}  Nf6 {[%clk 0:02:58]} 2. c4 {[%clk 0:03:01]}  c5 {[%clk 0:02:58]} 3. d5 {[%clk 0:03:00]}  b5 {[%clk 0:02:58]} 4. cxb5 {[%clk 0:03:00]}  a6 {[%clk 0:02:53]} 5. Nc3 {[%clk 0:03:01]}  axb5 {[%clk 0:02:53]} 6. e4 {[%clk 0:03:01]}  b4 {[%clk 0:02:52]} 7. Nb5 {[%clk 0:03:02]}  d6 {[%clk 0:02:53]} 8. Bf4 {[%clk 0:03:01]}  g5 {[%clk 0:02:53]} 9. Bxg5 {[%clk 0:03:00]}  Nxe4 {[%clk 0:02:53]} 10. Bf4 {[%clk 0:03:01]}  Bg7 {[%clk 0:02:49]} 11. Qe2 {[%clk 0:03:01]}  Nf6 {[%clk 0:02:43]} 12. Nxd6+ {[%clk 0:03:01]}  Kf8 {[%clk 0:02:43]} 13. Nxc8 {[%clk 0:03:01]}  Qxc8 {[%clk 0:02:44]} 14. Qf3 {[%clk 0:03:00]}  Nbd7 {[%clk 0:02:13]} 15. Ne2 {[%clk 0:02:50]}  Ne8 {[%clk 0:01:56]} 16. Rb1 {[%clk 0:02:37]}  Rxa2 {[%clk 0:01:53]} 17. Ng3 {[%clk 0:02:35]}  Rxb2 {[%clk 0:01:48]} 18. Rxb2 {[%clk 0:02:29]}  Bxb2 {[%clk 0:01:49]} 19. Bh6+ {[%clk 0:02:26]}  Ng7 {[%clk 0:01:35]} 20. Nf5 {[%clk 0:02:18]}  Bc3+ {[%clk 0:01:27]} 21. Kd1 {[%clk 0:02:15]}  Rg8 {[%clk 0:01:06]} 22. d6 {[%clk 0:01:28]}  e6 {[%clk 0:00:54]} 23. Ne7 {[%clk 0:01:28]}  Qb8 {[%clk 0:00:50]} 24. Nxg8 {[%clk 0:01:20]}  Qxd6+ {[%clk 0:00:43]} 25. Kc2 {[%clk 0:01:17]}  Kxg8 {[%clk 0:00:42]} 26. Bd3 {[%clk 0:01:13]}  Bd4 {[%clk 0:00:26]} 27. Rd1 {[%clk 0:00:19]}  b3+ {[%clk 0:00:24]} 28. Kb1 {[%clk 0:00:17]}  Qb8 {[%clk 0:00:22]} 29. Bc4 {[%clk 0:00:12]}  Ne5 {[%clk 0:00:18]} 30. Qg3 {[%clk 0:00:12]}  Nc6 {[%clk 0:00:11]} 31. Qxb8+ {[%clk 0:00:01]}  Nxb8 {[%clk 0:00:12]} 32. Bxb3 {[%clk 0:00:01]}  Nf5 {[%clk 0:00:12]} 0-1


[Site "https://www.chess.com"]

[Event "Titled Tuesday Blitz May 03 Early 2022"]
[White "Gabrielian, Artur"]
[Black "Prohorov, Olexandr"]
[WhiteFideId "4131002"]
[BlackFideId "14105578"]
[WhiteElo "2440"]
[BlackElo "1993"]
[Result "1-0"]
[Round "02"]
[TimeControl "180+1"]
[Date "2022.05.03"]
[WhiteClock "0:00:13"]
[BlackClock "0:00:07"]

1. e4 {[%clk 0:03:00]}  c5 {[%clk 0:02:59]} 2. Nf3 {[%clk 0:03:00]}  e6 {[%clk 0:03:00]} 3. d4 {[%clk 0:02:58]}  cxd4 {[%clk 0:03:01]} 4. Nxd4 {[%clk 0:02:58]}  Qb6 {[%clk 0:03:02]} 5. Nb3 {[%clk 0:02:56]}  Nf6 {[%clk 0:03:01]} 6. Nc3 {[%clk 0:02:56]}  Bb4 {[%clk 0:03:01]} 7. Bd3 {[%clk 0:02:56]}  d5 {[%clk 0:03:01]} 8. exd5 {[%clk 0:02:54]}  Nxd5 {[%clk 0:03:01]} 9. O-O {[%clk 0:02:54]}  Nxc3 {[%clk 0:02:58]} 10. bxc3 {[%clk 0:02:54]}  Be7 {[%clk 0:02:59]} 11. Qh5 {[%clk 0:02:50]}  Nd7 {[%clk 0:02:56]} 12. Be3 {[%clk 0:02:49]}  Qc7 {[%clk 0:02:56]} 13. f4 {[%clk 0:02:47]}  Nf6 {[%clk 0:02:52]} 14. Qf3 {[%clk 0:02:37]}  O-O {[%clk 0:02:50]} 15. Bd4 {[%clk 0:02:31]}  Bd7 {[%clk 0:02:43]} 16. Rae1 {[%clk 0:02:30]}  b6 {[%clk 0:02:36]} 17. Be5 {[%clk 0:02:26]}  Qc8 {[%clk 0:02:14]} 18. Nd4 {[%clk 0:02:22]}  g6 {[%clk 0:02:07]} 19. Qh3 {[%clk 0:02:19]}  Nd5 {[%clk 0:01:59]} 20. c4 {[%clk 0:02:06]}  Nf6 {[%clk 0:01:44]} 21. Qh6 {[%clk 0:02:02]}  Re8 {[%clk 0:01:34]} 22. Re3 {[%clk 0:01:58]}  Qc5 {[%clk 0:01:33]} 23. c3 {[%clk 0:01:45]}  Bf8 {[%clk 0:01:27]} 24. Qh4 {[%clk 0:01:45]}  Nh5 {[%clk 0:01:22]} 25. Qxh5 {[%clk 0:01:34]}  gxh5 {[%clk 0:01:21]} 26. Rg3+ {[%clk 0:01:34]}  Bg7 {[%clk 0:01:20]} 27. Rxg7+ {[%clk 0:01:34]}  Kf8 {[%clk 0:01:20]} 28. Bf6 {[%clk 0:01:31]}  Qe7 {[%clk 0:01:13]} 29. Bxe7+ {[%clk 0:01:30]}  Kxg7 {[%clk 0:01:11]} 30. Bd6 {[%clk 0:01:29]}  f6 {[%clk 0:01:09]} 31. Rf3 {[%clk 0:01:18]}  h4 {[%clk 0:01:00]} 32. Rh3 {[%clk 0:01:06]}  e5 {[%clk 0:00:53]} 33. Nf5+ {[%clk 0:01:02]}  Bxf5 {[%clk 0:00:53]} 34. Bxf5 {[%clk 0:01:03]}  Rad8 {[%clk 0:00:48]} 35. fxe5 {[%clk 0:01:01]}  fxe5 {[%clk 0:00:45]} 36. c5 {[%clk 0:00:55]}  e4 {[%clk 0:00:45]} 37. Re3 {[%clk 0:00:49]}  bxc5 {[%clk 0:00:37]} 38. Bxc5 {[%clk 0:00:49]}  Re5 {[%clk 0:00:29]} 39. Bd4 {[%clk 0:00:44]}  Rxd4 {[%clk 0:00:26]} 40. cxd4 {[%clk 0:00:44]}  Rxf5 {[%clk 0:00:26]} 41. Rxe4 {[%clk 0:00:44]}  Ra5 {[%clk 0:00:22]} 42. Re2 {[%clk 0:00:42]}  Kf6 {[%clk 0:00:14]} 43. Kf2 {[%clk 0:00:41]}  Kf5 {[%clk 0:00:07]} 44. Kf3 {[%clk 0:00:15]}  Ra3+ {[%clk 0:00:06]} 45. Kf2 {[%clk 0:00:15]}  Ra5 {[%clk 0:00:06]} 46. Kf3 {[%clk 0:00:15]}  Ra3+ {[%clk 0:00:06]} 47. Re3 {[%clk 0:00:16]}  Rxa2 {[%clk 0:00:05]} 48. Re5+ {[%clk 0:00:16]}  Kf6 {[%clk 0:00:05]} 49. Rh5 {[%clk 0:00:16]}  Rd2 {[%clk 0:00:04]} 50. Rxh4 {[%clk 0:00:15]}  Kg6 {[%clk 0:00:03]} 51. Rg4+ {[%clk 0:00:14]}  Kf6 {[%clk 0:00:03]} 52. Rf4+ {[%clk 0:00:14]}  Kg6 {[%clk 0:00:03]} 53. Rg4+ {[%clk 0:00:14]}  Kf6 {[%clk 0:00:03]} 54. h3 {[%clk 0:00:15]}  a5 {[%clk 0:00:03]} 55. Ke3 {[%clk 0:00:15]}  Rb2 {[%clk 0:00:02]} 56. Rg8 {[%clk 0:00:15]}  a4 {[%clk 0:00:02]} 57. Ke4 {[%clk 0:00:13]}  a3 {[%clk 0:00:02]} 58. Ra8 {[%clk 0:00:13]}  a2 {[%clk 0:00:03]} 59. g4 {[%clk 0:00:13]}  Ke6 {[%clk 0:00:03]} 60. Ra6+ {[%clk 0:00:13]}  Ke7 {[%clk 0:00:03]} 61. Ke5 {[%clk 0:00:14]}  Re2+ {[%clk 0:00:02]} 62. Kd5 {[%clk 0:00:14]}  Rb2 {[%clk 0:00:01]} 63. h4 {[%clk 0:00:13]}  Rc2 {[%clk 0:00:01]} 64. g5 {[%clk 0:00:13]}  Rb2 {[%clk 0:00:01]} 65. Ke5 {[%clk 0:00:12]}  Rc2 {[%clk 0:00:01]} 66. h5 {[%clk 0:00:12]}  Rb2 {[%clk 0:00:01]} 67. Ra7+ {[%clk 0:00:11]}  Ke8 {[%clk 0:00:01]} 68. d5 {[%clk 0:00:12]}  Re2+ {[%clk 0:00:02]} 69. Kd6 {[%clk 0:00:12]}  Kf8 {[%clk 0:00:02]} 70. h6 {[%clk 0:00:12]}  Rg2 {[%clk 0:00:02]} 71. Ra8+ {[%clk 0:00:11]}  Kf7 {[%clk 0:00:02]} 72. Ra7+ {[%clk 0:00:11]}  Kg6 {[%clk 0:00:02]} 73. Rg7+ {[%clk 0:00:12]}  Kf5 {[%clk 0:00:03]} 74. Ra7 {[%clk 0:00:13]}  Ke4 {[%clk 0:00:03]} 75. Ke6 {[%clk 0:00:13]}  Rxg5 {[%clk 0:00:03]} 76. Ra4+ {[%clk 0:00:13]}  Kd3 {[%clk 0:00:03]} 77. Rxa2 {[%clk 0:00:13]}  Rg6+ {[%clk 0:00:02]} 78. Ke5 {[%clk 0:00:13]}  Rxh6 {[%clk 0:00:03]} 79. d6 {[%clk 0:00:13]}  Rh5+ {[%clk 0:00:04]} 80. Ke6 {[%clk 0:00:13]}  Kc4 {[%clk 0:00:05]} 81. d7 {[%clk 0:00:13]}  Rh3 {[%clk 0:00:06]} 82. d8=Q {[%clk 0:00:12]}  Re3+ {[%clk 0:00:07]} 83. Kf5 {[%clk 0:00:13]}  Rd3 {[%clk 0:00:07]} 84. Qc7+ {[%clk 0:00:12]}  Kd4 {[%clk 0:00:07]} 85. Qe5+ {[%clk 0:00:12]}  Kc4 {[%clk 0:00:07]} 86. Ra4+ {[%clk 0:00:13]}  Kb3 {[%clk 0:00:07]} 87. Qb5+ {[%clk 0:00:13]}  Kc2 {[%clk 0:00:07]} 88. Ra2+ {[%clk 0:00:13]}  Kc3 {[%clk 0:00:07]} 89. Ra3+ {[%clk 0:00:13]} 1-0


[Site "https://www.chess.com"]

[Event "Titled Tuesday Blitz May 03 Early 2022"]
[White "Grischuk, Alexander"]
[Black "Ohanyan, Emin"]
[WhiteFideId "4126025"]
[BlackFideId "13312022"]
[WhiteElo "2762"]
[BlackElo "1927"]
[Result "1-0"]
[Round "02"]
[TimeControl "180+1"]
[Date "2022.05.03"]
[WhiteClock "0:01:38"]
[BlackClock "0:00:11"]

1. d4 {[%clk 0:03:00]}  d5 {[%clk 0:02:58]} 2. Nf3 {[%clk 0:03:01]}  Nf6 {[%clk 0:02:58]} 3. Bf4 {[%clk 0:03:01]}  e6 {[%clk 0:02:52]} 4. Nbd2 {[%clk 0:03:01]}  Bd6 {[%clk 0:02:53]} 5. Bg5 {[%clk 0:03:01]}  Nbd7 {[%clk 0:02:51]} 6. e4 {[%clk 0:02:57]}  dxe4 {[%clk 0:02:40]} 7. Nxe4 {[%clk 0:02:29]}  Be7 {[%clk 0:02:40]} 8. Nxf6+ {[%clk 0:02:27]}  Nxf6 {[%clk 0:02:04]} 9. Bd3 {[%clk 0:02:26]}  h6 {[%clk 0:02:04]} 10. Bd2 {[%clk 0:02:23]}  c5 {[%clk 0:01:57]} 11. dxc5 {[%clk 0:02:23]}  Bxc5 {[%clk 0:01:57]} 12. Qe2 {[%clk 0:02:24]}  Qb6 {[%clk 0:01:06]} 13. O-O-O {[%clk 0:02:21]}  Bxf2 {[%clk 0:00:54]} 14. Rhf1 {[%clk 0:02:15]}  Bc5 {[%clk 0:00:53]} 15. Ne5 {[%clk 0:02:15]}  Be7 {[%clk 0:00:46]} 16. g4 {[%clk 0:02:02]}  Bd7 {[%clk 0:00:41]} 17. h4 {[%clk 0:02:01]}  Rf8 {[%clk 0:00:24]} 18. g5 {[%clk 0:02:00]}  hxg5 {[%clk 0:00:24]} 19. hxg5 {[%clk 0:02:01]}  Nd5 {[%clk 0:00:25]} 20. Nxf7 {[%clk 0:02:00]}  Rxf7 {[%clk 0:00:17]} 21. Bg6 {[%clk 0:01:57]}  O-O-O {[%clk 0:00:17]} 22. Rxf7 {[%clk 0:01:54]}  Bb5 {[%clk 0:00:13]} 23. Bd3 {[%clk 0:01:40]}  Be8 {[%clk 0:00:11]} 24. Rxg7 {[%clk 0:01:38]} 1-0


[Site "https://www.chess.com"]